bitfinex-derivatives/quotes_BTCF0:USTF0_20210703
["timestamp","ask_amount","ask_price","bid_price","bid_amount"]
[1625343096781,4.00258549,34712.0,34711.0,0.51458328]
[1625343097183,3.94358549,34712.0,34711.0,0.59954335]
[1625343097484,4.00258549,34712.0,34711.0,0.59954335]
[1625343097635,2.75969863,34712.0,34711.0,0.3446746]
[1625343098186,2.81869863,34712.0,34711.0,0.3446746]
[1625343098335,4.00250925,34712.0,34711.0,0.51459095]
[1625343098637,3.94350925,34712.0,34711.0,0.51459095]
[1625343098737,4.00250925,34712.0,34711.0,0.59955258]
[1625343099240,4.00250925,34712.0,34711.0,0.08981888]
[1625343101944,4.00250925,34712.0,34711.0,0.00485725]
[1625343102548,5.35576946,34712.0,34711.0,0.00485725]
[1625343103951,5.35576946,34712.0,34710.0,0.59476244]
[1625343104253,5.35576946,34712.0,34709.0,0.08498641]
[1625343104506,5.35576946,34712.0,34710.0,0.00485765]
[1625343104756,0.118,34711.0,34709.0,0.08498641]
[1625343104856,4.73450794,34710.0,34708.0,0.83549676]
[1625343105106,4.85250794,34710.0,34708.0,0.83549676]
[1625343105505,4.97417738,34709.0,34708.0,0.08500289]
[1625343105605,5.09217738,34709.0,34708.0,0.08500289]
[1625343105857,5.09217738,34709.0,34708.0,0.00485776]
[1625343106460,5.09217738,34709.0,34707.0,0.25500897]
[1625343106761,5.09217738,34709.0,34707.0,0.08500349]
[1625343107211,4.72304136,34708.0,34707.0,0.08500349]
[1625343107311,4.84104136,34708.0,34707.0,0.08500349]
[1625343107713,4.84104136,34708.0,34706.0,0.59505643]
[1625343108165,4.72045442,34707.0,34706.0,0.25504247]
[1625343108363,4.83845442,34707.0,34706.0,0.25504247]
[1625343108567,4.83845442,34707.0,34706.0,0.25990045]
[1625343108714,4.83845442,34707.0,34706.0,0.60005087]
[1625343109166,3.4898254,34707.0,34706.0,0.51502981]
[1625343109467,3.73040084,34707.0,34706.0,0.51502981]
[1625343109665,5.08166063,34707.0,34706.0,0.51502981]
[1625343111418,5.08166063,34707.0,34706.0,0.51017183]
[1625343111818,5.08166063,34707.0,34706.0,0.5952268]
[1625343112019,9.65996063,34707.0,34706.0,0.5952268]
[1625343112368,9.65996063,34707.0,34706.0,0.51017183]
[1625343112470,5.08166063,34707.0,34706.0,0.51017183]
[1625343114875,5.08166063,34707.0,34706.0,0.25511389]
[1625343116677,5.02266063,34707.0,34706.0,0.25511389]
[1625343116778,5.02266063,34707.0,34706.0,0.51556151]
[1625343117479,3.67140084,34707.0,34706.0,2.21779496]
[1625343118730,3.61240084,34707.0,34706.0,2.21779496]
[1625343119081,3.61240084,34707.0,34706.0,2.27679496]
[1625343119284,2.43232937,34707.0,34706.0,3.46842283]
[1625343120033,2.43232937,34707.0,34706.0,3.40942283]
[1625343120235,2.49132937,34707.0,34706.0,3.40942283]
[1625343120336,2.55032937,34707.0,34706.0,3.40942283]
[1625343120738,2.43232937,34707.0,34706.0,3.40942283]
[1625343125953,2.43232937,34707.0,34706.0,7.94562283]
[1625343126757,2.43232937,34707.0,34706.0,9.30741583]
[1625343127561,0.7482191,34707.0,34706.0,9.30741583]
[1625343128060,0.7482191,34707.0,34706.0,9.36641583]
[1625343128361,0.83288999,34707.0,34706.0,9.36641583]
[1625343128912,0.83288999,34707.0,34706.0,4.83021583]
[1625343129162,0.32524633,34707.0,34706.0,4.83021583]
[1625343129513,0.32524633,34707.0,34706.0,4.77121583]
[1625343129615,0.32524633,34707.0,34706.0,4.83021583]
[1625343129763,0.32524633,34707.0,34706.0,4.77121583]
[1625343130616,0.32524633,34707.0,34706.0,4.83021583]
[1625343130714,0.32524633,34707.0,34706.0,4.88921583]
[1625343130864,0.49441495,34707.0,34706.0,4.88921583]
[1625343130964,0.49441495,34707.0,34706.0,8.60221583]
[1625343131466,0.24057544,34707.0,34706.0,10.13401933]
[1625343131665,0.24057544,34707.0,34706.0,10.37459477]
[1625343132316,0.08477966,34709.0,34706.0,10.37459477]
[1625343132417,0.08477966,34709.0,34706.0,6.66159477]
[1625343132619,0.08477966,34709.0,34707.0,0.00485681]
[1625343132819,0.08477966,34709.0,34707.0,0.06385681]
[1625343132969,0.08477966,34709.0,34707.0,0.12285681]
[1625343133219,0.25429451,34709.0,34708.0,4.77031948]
[1625343133320,0.25429451,34709.0,34708.0,4.88831948]
[1625343133872,0.25429451,34709.0,34708.0,4.82931948]
[1625343133971,0.25429451,34709.0,34708.0,8.72201948]
[1625343134471,0.25429451,34709.0,34708.0,4.82931948]
[1625343134823,0.25429451,34709.0,34708.0,4.77031948]
[1625343135424,0.50855597,34709.0,34708.0,4.77031948]
[1625343135777,0.50855597,34709.0,34708.0,8.67551948]
[1625343135876,0.84740919,34709.0,34708.0,8.67551948]
[1625343136076,0.84740919,34709.0,34708.0,4.77031948]
[1625343136427,0.33904112,34709.0,34708.0,4.77031948]
[1625343136830,0.50859399,34709.0,34708.0,4.77031948]
[1625343137479,0.50859399,34709.0,34708.0,9.84911948]
[1625343139133,0.50859399,34709.0,34708.0,4.77031948]
[1625343139836,0.50859399,34709.0,34708.0,8.89051948]
[1625343139986,0.50859399,34709.0,34708.0,8.94951948]
[1625343140086,0.84738037,34709.0,34708.0,8.94951948]
[1625343140187,0.84738037,34709.0,34708.0,8.89051948]
[1625343140390,0.84738037,34709.0,34708.0,8.94951948]
[1625343140490,0.08489124,34709.0,34708.0,8.89051948]
[1625343140789,0.08489124,34709.0,34708.0,4.77031948]
[1625343141489,0.59345657,34709.0,34708.0,4.77031948]
[1625343142045,1.18569038,34709.0,34708.0,4.77031948]
[1625343142594,1.18569038,34709.0,34708.0,4.82931948]
[1625343142695,1.18569038,34709.0,34708.0,8.72191948]
[1625343143445,0.25446881,34709.0,34708.0,8.72191948]
[1625343143545,0.25446881,34709.0,34708.0,4.82931948]
[1625343143744,0.25446881,34709.0,34708.0,4.77031948]
[1625343144747,0.50851885,34709.0,34708.0,4.77031948]
[1625343145947,0.84709173,34709.0,34708.0,4.77031948]
[1625343146448,0.90609173,34709.0,34708.0,4.77031948]
[1625343146950,2.25530919,34709.0,34708.0,3.40875831]
[1625343148203,2.19630919,34709.0,34708.0,3.40875831]
[1625343155020,3.37693604,34709.0,34708.0,3.40875831]
[1625343155722,2.19630919,34709.0,34708.0,3.40875831]
[1625343157223,2.19630919,34709.0,34708.0,6.97025831]
[1625343157326,2.19630919,34709.0,34708.0,3.40875831]
[1625343157924,2.19630919,34709.0,34708.0,7.80055831]
[1625343158729,2.19630919,34709.0,34708.0,9.16287977]
[1625343159076,2.19630919,34709.0,34708.0,4.77107977]
[1625343161131,2.19630919,34709.0,34708.0,3.40875831]
[1625343162084,2.19630919,34709.0,34708.0,3.65546831]
[1625343162835,2.19630919,34709.0,34708.0,5.01764292]
[1625343165791,2.19630919,34709.0,34708.0,5.07664292]
[1625343166141,2.19630919,34709.0,34708.0,9.66164292]
[1625343166242,1.1834548,34709.0,34708.0,9.66164292]
[1625343166694,0.84613854,34709.0,34708.0,9.66164292]
[1625343167146,0.84613854,34709.0,34708.0,5.07664292]
[1625343167244,0.50704272,34709.0,34708.0,5.07664292]
[1625343167746,0.50665594,34709.0,34708.0,5.07664292]
[1625343168196,1.18206286,34709.0,34708.0,5.07664292]
[1625343168545,1.18206286,34709.0,34708.0,8.79844292]
[1625343169647,1.18206286,34709.0,34708.0,5.07664292]
[1625343169747,1.18206286,34709.0,34708.0,5.01764292]
[1625343171600,1.18206286,34709.0,34708.0,5.07664292]
[1625343171802,1.18206286,34709.0,34708.0,8.74944292]
[1625343172806,1.18206286,34709.0,34708.0,5.07664292]
[1625343173006,1.18206286,34709.0,34708.0,5.01764292]
[1625343173808,1.18206286,34709.0,34708.0,9.66134292]
[1625343173909,1.18206286,34709.0,34708.0,5.01764292]
[1625343174409,1.18206286,34709.0,34708.0,6.55133847]
[1625343174509,1.18206286,34709.0,34708.0,10.55213847]
[1625343174659,1.18206286,34709.0,34708.0,6.55133847]
[1625343175814,1.18206286,34709.0,34708.0,5.01764292]
[1625343176265,1.18206286,34709.0,34708.0,8.78974292]
[1625343176466,2.19579298,34709.0,34708.0,8.78974292]
[1625343176820,2.19579298,34709.0,34708.0,5.01764292]
[1625343177219,2.19579298,34709.0,34708.0,6.55203046]
[1625343179323,2.19579298,34709.0,34708.0,10.94973046]
[1625343179423,2.19579298,34709.0,34708.0,11.00873046]
[1625343179872,2.19579298,34709.0,34708.0,6.61103046]
[1625343181123,2.19523484,34709.0,34708.0,6.61103046]
[1625343181725,2.19523484,34709.0,34708.0,11.49473046]
[1625343181828,2.19523484,34709.0,34708.0,6.61103046]
[1625343184536,3.37864366,34709.0,34708.0,5.07664292]
[1625343185485,3.37864366,34709.0,34708.0,8.84794292]
[1625343185987,3.6192191,34709.0,34708.0,8.84794292]
[1625343187294,3.6192191,34709.0,34708.0,5.07664292]
[1625343189998,3.37864366,34709.0,34708.0,5.07664292]
[1625343190504,2.19523484,34709.0,34708.0,6.61182961]
[1625343190601,2.19523484,34709.0,34708.0,11.62402961]
[1625343191102,2.19523484,34709.0,34708.0,6.61182961]
[1625343192104,3.37963903,34709.0,34708.0,5.07664292]
[1625343192704,2.19523484,34709.0,34708.0,6.61182679]
[1625343194255,3.38026091,34709.0,34708.0,6.61182679]
[1625343199420,3.38026091,34709.0,34708.0,6.61117188]
[1625343200827,3.38026091,34709.0,34708.0,10.13857188]
[1625343201927,3.38026091,34709.0,34708.0,6.61117188]
[1625343203730,2.19523484,34709.0,34708.0,6.61117188]
[1625343205284,3.38059287,34709.0,34708.0,6.61117188]
[1625343208340,3.38059287,34709.0,34708.0,11.05947188]
[1625343208643,2.19523484,34709.0,34708.0,11.05947188]
[1625343209092,2.19523484,34709.0,34708.0,6.61117188]
[1625343210496,3.38204784,34709.0,34708.0,6.61117188]
[1625343214153,3.38204784,34709.0,34708.0,5.07598801]
[1625343214955,3.38204784,34709.0,34708.0,6.61191348]
[1625343216207,2.19523484,34709.0,34708.0,6.61191348]
[1625343220471,2.19523484,34709.0,34708.0,11.70401348]
[1625343220572,2.19523484,34709.0,34708.0,6.61191348]
[1625343224779,2.19523484,34709.0,34708.0,11.18931348]
[1625343227537,2.19523484,34709.0,34708.0,6.61191348]
[1625343232249,2.19523484,34709.0,34708.0,10.69401348]
[1625343232550,2.19523484,34709.0,34708.0,6.61191348]
[1625343236159,6.05223484,34709.0,34708.0,6.61191348]
[1625343236308,2.19523484,34709.0,34708.0,6.61191348]
[1625343236961,3.38484947,34709.0,34708.0,6.61191348]
[1625343238313,3.62542491,34709.0,34708.0,6.61191348]
[1625343240066,2.43581028,34709.0,34708.0,6.61191348]
[1625343240366,6.14271028,34709.0,34708.0,6.61191348]
[1625343240867,6.43623028,34709.0,34708.0,6.61191348]
[1625343240966,6.43623028,34709.0,34708.0,6.36520348]
[1625343241072,6.43623028,34709.0,34708.0,6.30620348]
[1625343241168,8.9842656,34709.0,34708.0,4.77027801]
[1625343241369,8.9842656,34709.0,34708.0,2.76937801]
[1625343241469,9.05644452,34709.0,34708.0,2.76937801]
[1625343241772,10.5848038,34709.0,34708.0,1.4072034]
[1625343242378,10.82537924,34709.0,34708.0,1.4072034]
[1625343242569,10.82537924,34709.0,34705.0,1.36551188]
[1625343243021,10.82537924,34709.0,34706.0,0.00485066]
[1625343243120,10.81220032,34709.0,34706.0,0.00485066]
[1625343243320,10.81220032,34709.0,34705.0,0.00485058]
[1625343243572,10.81220032,34709.0,34707.0,0.0048689]
[1625343243723,4.54057088,34709.0,34708.0,0.18743375]
[1625343244173,6.07995754,34709.0,34708.0,0.19230266]
[1625343245083,6.07995754,34709.0,34708.0,0.44817738]
[1625343245581,6.07995754,34709.0,34708.0,0.09016048]
[1625343246283,6.07995754,34709.0,34700.0,0.24057544]
[1625343246383,0.48115088,34701.0,34700.0,0.29957544]
[1625343246486,0.68480088,34701.0,34700.0,0.29957544]
[1625343246583,0.74380088,34701.0,34700.0,0.29957544]
[1625343246734,0.74380088,34701.0,34700.0,0.30443777]
[1625343246984,0.74380088,34701.0,34700.0,0.00486233]
[1625343246985,0.80280088,34701.0,34700.0,0.00486233]
[1625343247285,0.80280088,34701.0,34698.0,0.00486308]
[1625343247587,0.80280088,34701.0,34700.0,0.00486308]
[1625343247790,0.80280088,34701.0,34695.0,0.00486319]
[1625343248138,0.80280088,34701.0,34700.0,0.00486331]
[1625343248388,0.24057544,34697.0,34696.0,0.00486328]
[1625343248589,0.35857544,34697.0,34694.0,0.00486328]
[1625343248938,0.35857544,34697.0,34696.0,0.00486328]
[1625343249141,0.35857544,34697.0,34694.0,0.00486326]
[1625343250393,0.24057544,34696.0,34694.0,0.00486326]
[1625343250494,0.35857544,34696.0,34694.0,0.00486326]
[1625343250694,0.35857544,34696.0,34693.0,0.24057544]
[1625343251293,0.29957544,34696.0,34693.0,0.24057544]
[1625343252896,0.35857544,34696.0,34693.0,0.24057544]
[1625343253596,0.29957544,34696.0,34693.0,0.24057544]
[1625343253697,0.35857544,34696.0,34693.0,0.24057544]
[1625343253848,0.29957544,34696.0,34693.0,0.24057544]
[1625343254297,0.29957544,34696.0,34695.0,4.5114]
[1625343254398,0.29957544,34696.0,34694.0,0.20618847]
[1625343254747,0.29957544,34696.0,34694.0,0.20133]
[1625343254849,0.29957544,34696.0,34694.0,4.71313]
[1625343254949,0.29957544,34696.0,34694.0,0.20133]
[1625343257656,0.24057544,34696.0,34694.0,0.20133]
[1625343257960,0.24057544,34696.0,34695.0,0.00485794]
[1625343258159,0.24057544,34696.0,34695.0,0.06385794]
[1625343258311,0.24057544,34696.0,34695.0,4.97235794]
[1625343258558,0.24057544,34696.0,34695.0,5.21293338]
[1625343259010,0.24057544,34699.0,34695.0,5.21293338]
[1625343259312,0.24057544,34699.0,34696.0,0.00485701]
[1625343259410,0.24057544,34699.0,34696.0,0.12285701]
[1625343259861,0.24057544,34699.0,34697.0,0.00485671]
[1625343259962,0.24057544,34699.0,34697.0,0.12285671]
[1625343260313,0.24057544,34699.0,34698.0,0.00485666]
[1625343260413,0.24057544,34699.0,34698.0,0.12285666]
[1625343260516,0.24057544,34699.0,34698.0,0.3634321]
[1625343260613,0.24057544,34699.0,34698.0,3.25119665]
[1625343260964,0.24057544,34699.0,34698.0,3.19219665]
[1625343261214,0.24057544,34699.0,34698.0,3.13319665]
[1625343261513,3.96267544,34699.0,34698.0,3.13319665]
[1625343261614,0.24057544,34699.0,34698.0,3.13319665]
[1625343261714,0.24057544,34699.0,34698.0,2.7935943]
[1625343261963,0.24057544,34699.0,34698.0,2.78873764]
[1625343262165,0.24057544,34699.0,34698.0,1.42978962]
[1625343262364,0.24057544,34699.0,34698.0,1.434647]
[1625343262465,0.24057544,34699.0,34698.0,1.493647]
[1625343262766,0.24057544,34699.0,34698.0,2.85274184]
[1625343263165,0.24057544,34699.0,34698.0,2.91174184]
[1625343263266,0.24057544,34699.0,34698.0,2.85274184]
[1625343263666,0.24057544,34699.0,34698.0,7.25654184]
[1625343263767,0.24057544,34699.0,34698.0,7.31554184]
[1625343264118,0.24057544,34699.0,34698.0,7.25654184]
[1625343264369,0.24057544,34699.0,34698.0,7.31554184]
[1625343266122,0.24057544,34699.0,34698.0,2.91174184]
[1625343266475,0.24057544,34699.0,34698.0,2.85274184]
[1625343266724,0.24057544,34699.0,34698.0,2.79374184]
[1625343267781,0.24057544,34699.0,34698.0,1.434647]
[1625343268631,0.35857544,34699.0,34698.0,1.434647]
[1625343268732,0.29957544,34699.0,34698.0,1.434647]
[1625343268833,0.29957544,34699.0,34698.0,0.24543282]
[1625343269783,0.35857544,34699.0,34698.0,0.24543282]
[1625343269883,0.67327544,34699.0,34698.0,0.24543282]
[1625343271334,1.85190881,34699.0,34698.0,0.24543282]
[1625343273637,2.86233181,34699.0,34698.0,0.24543282]
[1625343274740,1.68369844,34699.0,34698.0,0.24543282]
[1625343275492,1.62469844,34699.0,34698.0,0.24543282]
[1625343275591,1.30999844,34699.0,34698.0,0.46233282]
[1625343275691,1.25099844,34699.0,34698.0,0.46233282]
[1625343275945,1.30999844,34699.0,34698.0,5.33273282]
[1625343276042,1.36899844,34699.0,34698.0,0.46233282]
[1625343276292,1.30999844,34699.0,34698.0,0.46233282]
[1625343277944,0.29957544,34699.0,34698.0,0.46233282]
[1625343280249,5.15927544,34699.0,34698.0,0.46233282]
[1625343280349,5.21827544,34699.0,34698.0,0.24543282]
[1625343280553,5.15927544,34699.0,34698.0,0.24543282]
[1625343280650,5.21827544,34699.0,34698.0,0.24543282]
[1625343280953,6.22851979,34699.0,34698.0,0.24543282]
[1625343281807,6.16951979,34699.0,34698.0,0.24543282]
[1625343281905,6.22851979,34699.0,34698.0,0.24543282]
[1625343283510,1.36881979,34699.0,34698.0,0.24543282]
[1625343288770,1.30981979,34699.0,34698.0,0.24543282]
[1625343291380,0.29957544,34699.0,34698.0,0.24543282]
[1625343291781,0.24057544,34699.0,34698.0,0.24543282]
[1625343291883,1.25325088,34699.0,34698.0,1.26549037]
[1625343292284,0.24057544,34699.0,34698.0,1.32449037]
[1625343293685,0.24057544,34699.0,34698.0,2.51498358]
[1625343296193,0.24057544,34699.0,34698.0,2.45598358]
[1625343297596,1.25533056,34699.0,34698.0,2.45598358]
[1625343299699,1.25533056,34699.0,34698.0,3.8184481]
[1625343301854,1.9316957,34699.0,34698.0,4.49969008]
[1625343304912,1.9906957,34699.0,34698.0,4.49969008]
[1625343305013,1.9316957,34699.0,34698.0,4.49969008]
[1625343305113,1.9906957,34699.0,34698.0,4.49969008]
[1625343305213,1.9906957,34699.0,34698.0,3.13722556]
[1625343305214,3.11489072,34699.0,34698.0,3.13722556]
[1625343305313,3.17389072,34699.0,34698.0,3.13722556]
[1625343305416,3.11489072,34699.0,34698.0,3.13722556]
[1625343305564,3.17389072,34699.0,34698.0,3.13722556]
[1625343305664,3.11489072,34699.0,34698.0,3.13722556]
[1625343312278,3.11489072,34699.0,34698.0,4.50030527]
[1625343313428,3.11489072,34699.0,34698.0,4.77562527]
[1625343314180,1.9316957,34699.0,34698.0,4.77562527]
[1625343316283,1.69112026,34699.0,34698.0,4.89362527]
[1625343316984,0.67854061,34702.0,34698.0,6.42216898]
[1625343317233,0.67854061,34702.0,34698.0,6.43556893]
[1625343317336,0.67854061,34702.0,34701.0,3.8736]
[1625343317485,1.18731888,34705.0,34701.0,3.9326]
[1625343317587,1.35691163,34707.0,34701.0,3.9326]
[1625343317588,0.67874326,34703.0,34701.0,9.72524657]
[1625343317692,0.67874326,34703.0,34701.0,9.78424657]
[1625343317785,0.67874326,34703.0,34702.0,0.00485838]
[1625343317886,0.67874326,34703.0,34702.0,0.06385838]
[1625343317985,0.67874326,34703.0,34702.0,0.12285838]
[1625343318295,0.92012942,34708.0,34702.0,5.91479564]
[1625343318688,0.92012942,34708.0,34703.0,0.00485834]
[1625343318788,0.92012942,34708.0,34707.0,4.25640696]
[1625343318890,0.92012942,34708.0,34707.0,5.03422784]
[1625343318991,0.92012942,34708.0,34707.0,5.09322784]
[1625343319192,0.92012942,34708.0,34707.0,5.0980862]
[1625343319642,0.92012942,34708.0,34707.0,5.0390862]
[1625343319891,0.92012942,34708.0,34707.0,4.7424162]
[1625343320141,0.97912942,34708.0,34707.0,4.7424162]
[1625343320442,0.92012942,34708.0,34707.0,4.7424162]
[1625343320544,3.1253458,34708.0,34707.0,3.38036597]
[1625343320642,3.1843458,34708.0,34707.0,3.38036597]
[1625343320744,3.2433458,34708.0,34707.0,3.38036597]
[1625343321042,3.2433458,34708.0,34707.0,3.13979053]
[1625343321244,3.2433458,34708.0,34707.0,2.89921509]
[1625343321394,4.59871438,34708.0,34707.0,0.00485836]
[1625343321643,4.91332438,34708.0,34705.0,0.68108833]
[1625343321845,4.91332438,34708.0,34706.0,0.00485951]
[1625343322244,0.67318544,34708.0,34706.0,0.00485951]
[1625343322644,5.75894218,34707.0,34704.0,0.00485948]
[1625343322744,5.81794218,34707.0,34704.0,0.00485948]
[1625343322894,0.24057544,34705.0,34704.0,0.00485948]
[1625343323044,4.47519128,34705.0,34704.0,0.00485948]
[1625343323145,4.53419128,34705.0,34704.0,0.00485948]
[1625343323596,4.53419128,34705.0,34704.0,3.76115948]
[1625343323847,4.53419128,34705.0,34704.0,0.00485948]
[1625343325049,4.53419128,34705.0,34704.0,0.6861908]
[1625343325549,6.05895734,34705.0,34704.0,0.00485948]
[1625343326454,4.53419128,34705.0,34704.0,0.68627852]
[1625343329559,4.53419128,34705.0,34704.0,0.97419852]
[1625343329812,4.53419128,34705.0,34704.0,1.99635612]
[1625343330962,4.53419128,34705.0,34704.0,7.11785612]
[1625343331769,4.53419128,34705.0,34704.0,8.31036499]
[1625343332267,3.17916163,34705.0,34704.0,8.31036499]
[1625343332668,3.68695099,34705.0,34704.0,8.82141237]
[1625343333470,3.68695099,34705.0,34704.0,3.69991237]
[1625343337029,3.38737555,34705.0,34704.0,3.99948781]
[1625343337275,0.50778936,34705.0,34704.0,4.05848781]
[1625343337376,0.50778936,34705.0,34704.0,5.42111068]
[1625343337480,1.18611068,34708.0,34704.0,5.42111068]
[1625343337677,1.18611068,34708.0,34705.0,0.0048581]
[1625343337776,1.14337544,34721.0,34705.0,0.0048581]
[1625343337777,0.67864041,34710.0,34707.0,4.76865735]
[1625343337875,0.67864041,34710.0,34707.0,4.82765735]
[1625343337975,0.67864041,34710.0,34707.0,4.88665735]
[1625343338226,0.67864041,34710.0,34708.0,0.004858]
[1625343338328,0.67864041,34710.0,34709.0,3.23582637]
[1625343338426,0.67864041,34710.0,34709.0,3.35382637]
[1625343338775,0.67864041,34710.0,34709.0,3.35868437]
[1625343338877,0.67827823,34711.0,34709.0,3.35868437]
[1625343339027,0.67827823,34711.0,34710.0,0.24057544]
[1625343339127,0.67827823,34711.0,34710.0,0.35857544]
[1625343339328,0.67827823,34711.0,34710.0,0.36343344]
[1625343339532,0.67827823,34711.0,34710.0,3.59730198]
[1625343339881,0.67827823,34711.0,34710.0,3.53830198]
[1625343340132,0.67827823,34711.0,34710.0,3.47930198]
[1625343340534,0.67827823,34711.0,34710.0,2.11767312]
[1625343341084,0.67827823,34711.0,34710.0,2.23567312]
[1625343341585,0.76497823,34711.0,34710.0,2.23567312]
[1625343341786,0.76497823,34711.0,34710.0,2.11767312]
[1625343341885,0.91922306,34712.0,34710.0,3.4788413]
[1625343342487,0.91922306,34712.0,34711.0,0.00485823]
[1625343342739,0.24057544,34712.0,34711.0,1.87652176]
[1625343343390,2.10462482,34712.0,34711.0,0.68546315]
[1625343344294,2.10462482,34712.0,34711.0,4.92466315]
[1625343345997,3.45968279,34712.0,34711.0,4.92466315]
[1625343346450,2.10462482,34712.0,34711.0,4.98366315]
[1625343346849,0.91845779,34712.0,34711.0,4.98366315]
[1625343348502,0.91845779,34712.0,34711.0,6.17402445]
[1625343350257,0.91845779,34712.0,34711.0,1.93482445]
[1625343350356,0.91845779,34712.0,34711.0,1.87582445]
[1625343351560,2.10606713,34712.0,34711.0,0.68546315]
[1625343354765,2.16506713,34712.0,34711.0,0.68546315]
[1625343355269,2.10606713,34712.0,34711.0,0.68546315]
[1625343356872,2.10606713,34712.0,34711.0,0.74446315]
[1625343356973,2.10606713,34712.0,34711.0,1.05856315]
[1625343357727,1.42818478,34712.0,34711.0,1.05856315]
[1625343357926,0.92054456,34712.0,34711.0,1.05856315]
[1625343359781,0.92054456,34712.0,34711.0,2.24800333]
[1625343360284,0.92054456,34712.0,34711.0,1.05856315]
[1625343366597,0.92054456,34712.0,34711.0,2.2451192]
[1625343366998,0.92054456,34712.0,34711.0,1.05856315]
[1625343367851,1.94082269,34712.0,34711.0,2.07556144]
[1625343369807,3.13134485,34712.0,34711.0,2.07556144]
[1625343370555,3.40835485,34712.0,34711.0,1.76146144]
[1625343370808,3.40835485,34712.0,34711.0,0.74446315]
[1625343371308,4.76926368,34712.0,34711.0,0.74446315]
[1625343372057,4.78243352,34712.0,34711.0,0.06385823]
[1625343373059,4.84143352,34712.0,34711.0,0.06385823]
[1625343373210,4.78243352,34712.0,34711.0,0.06385823]
[1625343373362,4.84143352,34712.0,34711.0,0.06385823]
[1625343373460,0.58975528,34712.0,34711.0,0.06385823]
[1625343373910,4.84380442,34712.0,34711.0,0.40405369]
[1625343374010,4.56679442,34712.0,34711.0,0.40405369]
[1625343375914,4.50779442,34712.0,34711.0,0.40405369]
[1625343376017,4.55362458,34712.0,34711.0,0.40405369]
[1625343376115,4.49462458,34712.0,34711.0,0.40405369]
[1625343376768,4.49462458,34712.0,34711.0,0.06385823]
[1625343377169,4.49462458,34712.0,34711.0,0.40201007]
[1625343377369,4.55362458,34712.0,34711.0,0.40201007]
[1625343377873,4.56679455,34712.0,34711.0,0.40201007]
[1625343378622,4.50779455,34712.0,34711.0,0.40201007]
[1625343378723,4.56679455,34712.0,34711.0,0.40201007]
[1625343378923,4.50779455,34712.0,34711.0,0.40201007]
[1625343379072,4.50779455,34712.0,34711.0,0.62248007]
[1625343379222,4.49462458,34712.0,34711.0,0.62248007]
[1625343380379,3.13337649,34712.0,34711.0,1.9733782]
[1625343381279,3.13337649,34712.0,34711.0,3.15521007]
[1625343387288,3.13337649,34712.0,34711.0,3.15035184]
[1625343387638,3.13337649,34712.0,34711.0,3.15521068]
[1625343390496,3.13337649,34712.0,34711.0,7.86441068]
[1625343390595,3.13337649,34712.0,34711.0,9.2179558]
[1625343392103,1.94226315,34712.0,34711.0,9.2179558]
[1625343393053,0.92128455,34712.0,34711.0,10.73980151]
[1625343396358,1.9444348,34712.0,34711.0,10.73980151]
[1625343396959,0.92128455,34712.0,34711.0,10.73980151]
[1625343397509,1.94431494,34712.0,34711.0,10.73980151]
[1625343398513,0.92128455,34712.0,34711.0,10.73980151]
[1625343399364,0.68070911,34712.0,34711.0,10.73980151]
[1625343399818,0.68070911,34712.0,34711.0,11.22095239]
[1625343400916,0.68070911,34712.0,34711.0,6.51175239]
[1625343401721,1.9725973,34712.0,34711.0,4.98990668]
[1625343402470,4.52966348,34712.0,34711.0,4.98990668]
[1625343403021,4.52966348,34712.0,34711.0,3.63636156]
[1625343403420,4.58866348,34712.0,34711.0,3.63636156]
[1625343404322,4.58866348,34712.0,34711.0,2.45452969]
[1625343404472,4.52966348,34712.0,34711.0,6.23972969]
[1625343404671,4.58866348,34712.0,34711.0,6.23972969]
[1625343404771,4.52966348,34712.0,34711.0,6.23972969]
[1625343404874,4.52966348,34712.0,34711.0,3.64243793]
[1625343405021,4.58866348,34712.0,34711.0,3.64243793]
[1625343405221,4.52966348,34712.0,34711.0,3.64243793]
[1625343405371,4.58866348,34712.0,34711.0,3.64243793]
[1625343405472,4.52966348,34712.0,34711.0,2.45452969]
[1625343405672,4.58866348,34712.0,34711.0,2.45452969]
[1625343406123,4.58866348,34712.0,34711.0,7.31832969]
[1625343407029,4.58866348,34712.0,34711.0,2.45452969]
[1625343407230,4.52966348,34712.0,34711.0,2.45452969]
[1625343407332,4.58866348,34712.0,34711.0,2.45452969]
[1625343407484,4.52966348,34712.0,34711.0,2.45452969]
[1625343407632,4.58866348,34712.0,34711.0,2.45452969]
[1625343407833,4.52966348,34712.0,34711.0,2.45452969]
[1625343407982,4.58866348,34712.0,34711.0,7.16602969]
[1625343408083,4.52966348,34712.0,34711.0,7.16602969]
[1625343408183,4.58866348,34712.0,34711.0,7.16602969]
[1625343408285,6.06390721,34712.0,34711.0,7.16602969]
[1625343408835,6.12290721,34712.0,34711.0,7.16602969]
[1625343409038,4.52966348,34712.0,34711.0,7.16602969]
[1625343409788,4.52966348,34712.0,34711.0,8.35284185]
[1625343411043,4.52966348,34712.0,34711.0,3.64134185]
[1625343412543,4.58866348,34712.0,34711.0,3.64134185]
[1625343412694,4.52966348,34712.0,34711.0,3.64134185]
[1625343412793,4.58866348,34712.0,34711.0,2.45452969]
[1625343412995,4.52966348,34712.0,34711.0,2.45452969]
[1625343413197,4.58866348,34712.0,34711.0,2.45452969]
[1625343413554,4.58866348,34712.0,34711.0,6.21712969]
[1625343413852,4.52966348,34712.0,34711.0,6.21712969]
[1625343413955,4.58866348,34712.0,34711.0,6.21712969]
[1625343417261,6.12272822,34712.0,34711.0,6.21712969]
[1625343417560,1.86215474,34712.0,34711.0,4.52807972]
[1625343417862,1.80315474,34712.0,34711.0,4.52807972]
[1625343418061,4.53054776,34712.0,34711.0,6.22853915]
[1625343418563,4.53054776,34712.0,34711.0,7.41856441]
[1625343418913,4.53054776,34712.0,34711.0,3.65596441]
[1625343419061,4.58954776,34712.0,34711.0,3.65596441]
[1625343419562,4.58954776,34712.0,34711.0,2.46593915]
[1625343420415,4.53054776,34712.0,34711.0,2.46593915]
[1625343420563,4.53054776,34712.0,34711.0,7.53893915]
[1625343421365,4.53054776,34712.0,34711.0,2.46593915]
[1625343422420,4.53054776,34712.0,34711.0,3.65557196]
[1625343427630,5.0419921,34712.0,34711.0,4.16554519]
[1625343430231,3.40928334,34712.0,34711.0,5.52507819]
[1625343430933,0.51144434,34712.0,34711.0,7.05274573]
[1625343431584,0.25590811,34712.0,34711.0,7.05274573]
[1625343432186,0.0853595,34712.0,34711.0,7.05274573]
[1625343432436,0.14863439,34713.0,34711.0,7.05274573]
[1625343432536,1.15362107,34714.0,34711.0,7.05274573]
[1625343432636,1.15362107,34714.0,34711.0,7.11174573]
[1625343432838,0.51130336,34714.0,34711.0,7.11174573]
[1625343432941,0.51130336,34714.0,34712.0,0.00485208]
[1625343433138,0.51130336,34714.0,34712.0,0.06385208]
[1625343433438,0.51116067,34716.0,34713.0,5.59966237]
[1625343433587,0.51116067,34716.0,34713.0,5.65866237]
[1625343433788,0.51116067,34716.0,34714.0,0.00485198]
[1625343433888,0.51116067,34716.0,34714.0,0.06385198]
[1625343433989,0.51116067,34716.0,34715.0,6.07450164]
[1625343434089,0.51116067,34716.0,34715.0,6.13350164]